fUSD/lending_fUSD_20250611
["ID","MTS","AMOUNT","RATE_DAILY","PERIOD"]
[365426022,1749664256428,-151.0,0.00019835,2]
[365426023,1749664256437,-591.636512,0.00019835,2]
[365426024,1749664256447,-591.636512,0.00019835,2]
[365426025,1749664256456,-490.0,0.00019835,2]
[365426026,1749664256465,-490.0,0.00019835,2]
[365426027,1749664256474,-155.9,0.00019835,2]
[365426028,1749664256483,-490.0,0.00019835,2]
[365426029,1749664256492,-490.0,0.00019835,2]
[365426030,1749664256502,-490.0,0.00019835,2]
[365426031,1749664256512,-555.44470719,0.00019835,2]
[365426032,1749664256523,-490.0,0.00019835,2]
[365426033,1749664256534,-490.0,0.00019835,2]
[365426034,1749664256543,-490.0,0.00019835,2]
[365426035,1749664256553,-490.0,0.00019835,2]
[365426036,1749664256563,-490.0,0.00019835,2]
[365426037,1749664256572,-490.0,0.00019835,2]
[365426038,1749664256581,-490.0,0.00019835,2]
[365426039,1749664256590,-490.0,0.00019835,2]
[365426040,1749664256599,-490.0,0.00019835,2]
[365426041,1749664256610,-490.0,0.00019835,2]
[365426042,1749664256619,-490.0,0.00019835,2]
[365426043,1749664256628,-499.76146099,0.00019835,2]
[365426044,1749664256637,-303.670731,0.00019835,2]
[365426045,1749664256645,-303.670731,0.00019835,2]
[365426046,1749664256654,-490.0,0.00019835,2]
[365426047,1749664256663,-490.0,0.00019835,2]
[365426048,1749664256671,-151.0,0.00019835,2]
[365426049,1749664256681,-151.0,0.00019835,2]
[365426050,1749664256690,-490.0,0.00019835,2]
[365426051,1749664256700,-490.0,0.00019835,2]
[365426052,1749664256709,-490.0,0.00019835,2]
[365426053,1749664256718,-490.0,0.00019835,2]
[365426054,1749664256726,-151.0,0.00019835,2]
[365426055,1749664256735,-307.44808157,0.00019835,2]
[365426056,1749664256744,-540.49,0.00019835,2]
[365426057,1749664256754,-490.0,0.00019835,2]
[365426058,1749664256763,-1114.51368,0.00019835,2]
[365426059,1749664256772,-1114.51368,0.00019835,2]
[365426060,1749664256781,-490.0,0.00019835,2]
[365426061,1749664256790,-490.0,0.00019835,2]
[365426062,1749664256799,-599.61,0.00019835,2]
[365426063,1749664256808,-490.0,0.00019835,2]
[365426064,1749664256817,-490.0,0.00019835,2]
[365426065,1749664256826,-151.279902,0.00019835,2]
[365426066,1749664256835,-490.0,0.00019835,2]
[365426067,1749664256844,-490.0,0.00019835,2]
[365426068,1749664256853,-490.0,0.00019835,2]
[365426069,1749664256861,-151.0,0.00019835,2]
[365426070,1749664256870,-490.0,0.00019835,2]
[365426071,1749664256879,-490.0,0.00019835,2]
[365426072,1749664256887,-490.0,0.00019835,2]
[365426073,1749664256897,-813.83,0.00019835,2]
[365426074,1749664256905,-490.0,0.00019835,2]
[365426075,1749664256914,-490.0,0.00019835,2]
[365426076,1749664256923,-512.56,0.00019835,2]
[365426077,1749664256932,-627.11,0.00019835,2]
[365426078,1749664256941,-490.0,0.00019835,2]
[365426079,1749664256950,-252.61,0.00019835,2]
[365426080,1749664256959,-490.0,0.00019835,2]
[365426081,1749664256967,-503.81,0.00019835,2]
[365426082,1749664256977,-490.0,0.00019835,2]
[365426083,1749664256986,-150.01757673,0.00019835,2]
[365426084,1749664256994,-490.0,0.00019835,2]
[365426085,1749664257004,-490.0,0.00019835,2]
[365426086,1749664257013,-490.0,0.00019835,2]
[365426087,1749664257022,-490.0,0.00019835,2]
[365426088,1749664257031,-151.0,0.00019835,2]
[365426089,1749664257040,-151.0,0.00019835,2]
[365426090,1749664257050,-490.0,0.00019835,2]
[365426091,1749664257060,-531.47,0.00019835,2]
[365426092,1749664257069,-816.42,0.00019835,2]
[365426093,1749664257077,-151.0,0.00019835,2]
[365426094,1749664257087,-490.0,0.00019835,2]
[365426095,1749664257095,-490.0,0.00019835,2]
[365426096,1749664257104,-490.0,0.00019835,2]
[365426097,1749664257114,-490.0,0.00019835,2]
[365426098,1749664257123,-850.55,0.00019835,2]
[365426099,1749664257132,-490.0,0.00019835,2]
[365426100,1749664257141,-362.13,0.00019835,2]
[365426101,1749664257151,-490.0,0.00019835,2]
[365426102,1749664257160,-490.0,0.00019835,2]
[365426103,1749664257169,-490.0,0.00019835,2]
[365426104,1749664257178,-600.11,0.00019835,2]
[365426105,1749664257187,-666.25,0.00019835,2]
[365426106,1749664257196,-490.0,0.00019835,2]
[365426107,1749664257206,-490.0,0.00019835,2]
[365426108,1749664257215,-844.13,0.00019835,2]
[365426109,1749664257224,-490.0,0.00019835,2]
[365426110,1749664257233,-596.21,0.00019835,2]
[365426111,1749664257242,-490.0,0.00019835,2]
[365426112,1749664257251,-490.0,0.00019835,2]
[365426113,1749664257261,-490.0,0.00019835,2]
[365426114,1749664257270,-490.0,0.00019835,2]
[365426115,1749664257280,-490.0,0.00019835,2]
[365426116,1749664257289,-151.0,0.00019835,2]
[365426117,1749664257298,-723.73,0.00019835,2]
[365426118,1749664257307,-292.04227495,0.00019835,2]
[365426119,1749664257316,-612.74,0.00019835,2]
[365426120,1749664257325,-490.0,0.00019835,2]
[365426121,1749664257334,-151.0,0.00019835,2]
[365426122,1749664257343,-493.54,0.00019835,2]
[365426123,1749664257352,-490.0,0.00019835,2]
[365426124,1749664257361,-490.0,0.00019835,2]
[365426125,1749664257370,-490.0,0.00019835,2]
[365426126,1749664257380,-490.0,0.00019835,2]
[365426127,1749664257389,-490.0,0.00019835,2]
[365426128,1749664257399,-843.72,0.00019835,2]
[365426129,1749664257408,-490.0,0.00019835,2]
[365426130,1749664257417,-218.930564,0.00019835,2]
[365426131,1749664257425,-532.28,0.00019835,2]
[365426132,1749664257434,-490.0,0.00019835,2]
[365426133,1749664257443,-490.0,0.00019835,2]
[365426134,1749664257453,-218.930564,0.00019835,2]
[365426135,1749664257462,-666.7,0.00019835,2]
[365426136,1749664257471,-490.0,0.00019835,2]
[365426137,1749664257480,-490.0,0.00019835,2]
[365426138,1749664257489,-490.0,0.00019835,2]
[365426139,1749664257498,-490.0,0.00019835,2]
[365426140,1749664257508,-490.0,0.00019835,2]
[365426141,1749664257517,-697.59,0.00019835,2]
[365426142,1749664257528,-151.0,0.00019835,2]
[365426143,1749664257538,-490.0,0.00019835,2]
[365426144,1749664257547,-151.0,0.00019835,2]
[365426145,1749664257556,-502.18,0.00019835,2]
[365426146,1749664257566,-490.0,0.00019835,2]
[365426147,1749664257575,-490.0,0.00019835,2]
[365426148,1749664257584,-490.0,0.00019835,2]
[365426149,1749664257593,-499.63,0.00019835,2]
[365426150,1749664257604,-151.0,0.00019835,2]
[365426151,1749664257614,-490.0,0.00019835,2]
[365426152,1749664257623,-490.0,0.00019835,2]
[365426153,1749664257631,-490.0,0.00019835,2]
[365426154,1749664257640,-506.21,0.00019835,2]
[365426155,1749664257650,-490.0,0.00019835,2]
[365426156,1749664257659,-151.0,0.00019835,2]
[365426157,1749664257668,-1036.53,0.00019835,2]
[365426158,1749664257677,-490.0,0.00019835,2]
[365426159,1749664257685,-490.0,0.00019835,2]
[365426160,1749664257695,-490.19,0.00019835,2]
[365426161,1749664257704,-490.0,0.00019835,2]
[365426162,1749664257713,-575.78,0.00019835,2]
[365426163,1749664257722,-511.63,0.00019835,2]
[365426164,1749664257731,-151.0,0.00019835,2]
[365426165,1749664257740,-490.0,0.00019835,2]
[365426166,1749664257750,-490.0,0.00019835,2]
[365426167,1749664257760,-228.34320624,0.00019835,2]
[365426168,1749664257769,-645.12,0.00019835,2]
[365426169,1749664257778,-490.0,0.00019835,2]
[365426170,1749664257788,-737.53,0.00019835,2]
[365426171,1749664257797,-490.0,0.00019835,2]
[365426172,1749664257807,-490.0,0.00019835,2]
[365426173,1749664257816,-818.95,0.00019835,2]
[365426174,1749664257825,-490.0,0.00019835,2]
[365426175,1749664257835,-490.0,0.00019835,2]
[365426176,1749664257844,-212.22398112,0.00019835,2]
[365426177,1749664257853,-519.18,0.00019835,2]
[365426178,1749664257862,-669.15,0.00019835,2]
[365426179,1749664257872,-490.0,0.00019835,2]
[365426180,1749664257881,-250.0,0.00019835,2]
[365426181,1749664257891,-892.72,0.00019835,2]
[365426182,1749664257900,-151.0,0.00019835,2]
[365426183,1749664257909,-744.03,0.00019835,2]
[365426184,1749664257918,-151.0,0.00019835,2]
[365426185,1749664257927,-644.81,0.00019835,2]
[365426186,1749664257936,-490.0,0.00019835,2]
[365426187,1749664257945,-1038.37,0.00019835,2]
[365426188,1749664257955,-496.26,0.00019835,2]
[365426189,1749664257964,-739.69,0.00019835,2]
[365426190,1749664257973,-151.0,0.00019835,2]
[365426191,1749664257982,-1766.35,0.00019835,2]
[365426192,1749664257991,-3742.92,0.00019835,2]
[365426193,1749664258000,-710.43,0.00019835,2]
[365426194,1749664258011,-627.29,0.00019835,2]
[365426195,1749664258020,-1941.66,0.00019835,2]
[365426196,1749664258029,-490.0,0.00019835,2]
[365426197,1749664258038,-545.28,0.00019835,2]
[365426198,1749664258048,-1099.76,0.00019835,2]
[365426199,1749664258057,-490.0,0.00019835,2]
[365426200,1749664258066,-151.0,0.00019835,2]
[365426201,1749664258076,-490.0,0.00019835,2]
[365426202,1749664258085,-490.0,0.00019835,2]
[365426203,1749664258094,-2859.5,0.00019835,2]
[365426204,1749664258102,-1000.0,0.00019835,2]
[365426205,1749664258112,-810.9,0.00019835,2]
[365426206,1749664258121,-490.0,0.00019835,2]
[365426207,1749664258131,-591.58,0.00019835,2]
[365426208,1749664258140,-490.0,0.00019835,2]
[365426209,1749664258149,-490.6,0.00019835,2]
[365426210,1749664258159,-6274.88,0.00019835,2]
[365426211,1749664258168,-490.0,0.00019835,2]
[365426212,1749664258177,-765.17,0.00019835,2]
[365426213,1749664258187,-151.0,0.00019835,2]
[365426214,1749664258196,-490.0,0.00019835,2]
[365426215,1749664258205,-490.0,0.00019835,2]
[365426216,1749664258215,-967.2,0.00019835,2]
[365426217,1749664258223,-490.0,0.00019835,2]
[365426218,1749664258234,-2665.06,0.00019835,2]
[365426219,1749664258243,-490.0,0.00019835,2]
[365426220,1749664258253,-583.92,0.00019835,2]
[365426221,1749664258263,-490.0,0.00019835,2]
[365426222,1749664258272,-751.65,0.00019835,2]
[365426223,1749664258281,-887.68,0.00019835,2]
[365426224,1749664258291,-490.0,0.00019835,2]
[365426225,1749664258301,-490.0,0.00019835,2]
[365426226,1749664258310,-613.65,0.00019835,2]
[365426227,1749664258319,-508.01,0.00019835,2]
[365426228,1749664258329,-4954.42,0.00019835,2]
[365426229,1749664258338,-1793.01,0.00019835,2]
[365426230,1749664258348,-490.0,0.00019835,2]
[365426231,1749664258357,-490.0,0.00019835,2]
[365426232,1749664258366,-681.26,0.00019835,2]
[365426233,1749664258376,-2993.328603,0.00019835,2]
[365426234,1749664258385,-706.34,0.00019835,2]
[365426235,1749664258395,-2993.328603,0.00019835,2]
[365426236,1749664258404,-490.0,0.00019835,2]
[365426237,1749664258414,-490.0,0.00019835,2]
[365426238,1749664258423,-1072.31,0.00019835,2]
[365426239,1749664258432,-490.0,0.00019835,2]
[365426240,1749664258442,-490.0,0.00019835,2]
[365426241,1749664258451,-490.0,0.00019835,2]
[365426242,1749664258461,-490.0,0.00019835,2]
[365426243,1749664258471,-490.0,0.00019835,2]
[365426244,1749664258480,-591.66,0.00019835,2]
[365426245,1749664258489,-2882.68,0.00019835,2]
[365426246,1749664258498,-490.0,0.00019835,2]
[365426247,1749664258508,-490.0,0.00019835,2]
[365426248,1749664258518,-1592.46,0.00019835,2]
[365426249,1749664258531,-490.0,0.00019835,2]
[365426250,1749664258540,-772.88,0.00019835,2]
[365426251,1749664258549,-151.0,0.00019835,2]
[365426252,1749664258559,-490.0,0.00019835,2]
[365426253,1749664258569,-490.0,0.00019835,2]
[365426254,1749664258578,-628.18,0.00019835,2]
[365426255,1749664258587,-1396.99,0.00019835,2]
[365426256,1749664258598,-1056.26,0.00019835,2]
[365426257,1749664258609,-213.005514,0.00019835,2]
[365426258,1749664258619,-151.0,0.00019835,2]
[365426259,1749664258629,-151.0,0.00019835,2]
[365426260,1749664258638,-824.41,0.00019835,2]
[365426261,1749664258648,-851.75,0.00019835,2]
[365426262,1749664258657,-490.0,0.00019835,2]
[365426263,1749664258666,-1036.29,0.00019835,2]
[365426264,1749664258675,-490.0,0.00019835,2]
[365426265,1749664258684,-621.51,0.00019835,2]
[365426266,1749664258693,-982.57,0.00019835,2]
[365426267,1749664258702,-490.0,0.00019835,2]
[365426268,1749664258711,-490.0,0.00019835,2]
[365426269,1749664258721,-490.0,0.00019835,2]
[365426270,1749664258729,-490.0,0.00019835,2]
[365426271,1749664258738,-262.40199456,0.00019835,2]
[365426272,1749664258748,-1715.86,0.00019835,2]
[365426273,1749664258758,-490.0,0.00019835,2]
[365426274,1749664258767,-490.0,0.00019835,2]
[365426275,1749664258777,-151.0,0.00019835,2]
[365426276,1749664258787,-490.0,0.00019835,2]
[365426277,1749664258796,-689.63,0.00019835,2]
[365426278,1749664258806,-490.0,0.00019835,2]
[365426279,1749664258815,-151.0,0.00019835,2]
[365426280,1749664258825,-490.0,0.00019835,2]
[365426281,1749664258834,-865.21,0.00019835,2]
[365426282,1749664258844,-1292.01,0.00019835,2]
[365426283,1749664258853,-490.0,0.00019835,2]
[365426284,1749664258863,-490.0,0.00019835,2]
[365426285,1749664258872,-538.16,0.00019835,2]
[365426286,1749664258881,-490.0,0.00019835,2]
[365426287,1749664258890,-490.0,0.00019835,2]
[365426288,1749664258900,-581.41,0.00019835,2]
[365426289,1749664258909,-538.04,0.00019835,2]
[365426290,1749664258918,-630.31,0.00019835,2]
[365426291,1749664258928,-490.0,0.00019835,2]
[365426292,1749664258937,-619.62,0.00019835,2]
[365426293,1749664258946,-490.0,0.00019835,2]
[365426294,1749664258955,-545.79,0.00019835,2]
[365426295,1749664258964,-5455.39,0.00019835,2]
[365426296,1749664258974,-151.0,0.00019835,2]
[365426297,1749664258983,-490.0,0.00019835,2]
[365426298,1749664258992,-578.51,0.00019835,2]
[365426299,1749664259002,-490.0,0.00019835,2]
[365426300,1749664259013,-869.31,0.00019835,2]
[365426301,1749664259022,-7091.69,0.00019835,2]
[365426302,1749664259031,-1578.74,0.00019835,2]
[365426303,1749664259041,-490.0,0.00019835,2]
[365426304,1749664259051,-490.0,0.00019835,2]
[365426305,1749664259060,-151.0,0.00019835,2]
[365426306,1749664259070,-490.0,0.00019835,2]
[365426307,1749664259080,-490.0,0.00019835,2]
[365426308,1749664259090,-819.06,0.00019835,2]
[365426309,1749664259100,-519.97,0.00019835,2]
[365426310,1749664259109,-490.0,0.00019835,2]
[365426311,1749664259119,-151.0,0.00019835,2]
[365426312,1749664259129,-1328.38,0.00019835,2]
[365426313,1749664259139,-1017.44,0.00019835,2]
[365426314,1749664259149,-490.0,0.00019835,2]
[365426315,1749664259160,-490.0,0.00019835,2]
[365426316,1749664259170,-638.23,0.00019835,2]
[365426317,1749664259180,-490.0,0.00019835,2]
[365426318,1749664259189,-490.0,0.00019835,2]
[365426319,1749664259199,-853.47,0.00019835,2]
[365426320,1749664259209,-1459.54,0.00019835,2]
[365426321,1749664259219,-1762.157735,0.00019835,2]
[365426322,1749664259228,-509.78,0.00019835,2]
[365426323,1749664259238,-956.22,0.00019835,2]
[365426324,1749664259248,-1668.79,0.00019835,2]
[365426325,1749664259258,-563.11,0.00019835,2]
[365426326,1749664259268,-768.89,0.00019835,2]
[365426327,1749664259277,-1762.157735,0.00019835,2]
[365426328,1749664259287,-490.0,0.00019835,2]
[365426329,1749664259297,-556.57,0.00019835,2]
[365426330,1749664259307,-782.98,0.00019835,2]
[365426331,1749664259316,-490.0,0.00019835,2]
[365426332,1749664259326,-490.0,0.00019835,2]
[365426333,1749664259337,-490.0,0.00019835,2]
[365426334,1749664259347,-490.0,0.00019835,2]
[365426335,1749664259356,-3243.25,0.00019835,2]
[365426336,1749664259366,-490.0,0.00019835,2]
[365426337,1749664259375,-490.0,0.00019835,2]
[365426338,1749664259385,-534.84,0.00019835,2]
[365426339,1749664259395,-490.0,0.00019835,2]
[365426340,1749664259405,-622.95,0.00019835,2]
[365426341,1749664259415,-490.0,0.00019835,2]
[365426342,1749664259424,-836.19,0.00019835,2]
[365426343,1749664259434,-1251.96,0.00019835,2]
[365426344,1749664259444,-779.51,0.00019835,2]
[365426345,1749664259454,-2676.7,0.00019835,2]
[365426346,1749664259464,-536.75,0.00019835,2]
[365426347,1749664259473,-490.0,0.00019835,2]
[365426348,1749664259483,-1108.13,0.00019835,2]
[365426349,1749664259492,-711.18,0.00019835,2]
[365426350,1749664259502,-151.0,0.00019835,2]
[365426351,1749664259514,-490.0,0.00019835,2]
[365426352,1749664259526,-490.0,0.00019835,2]
[365426353,1749664259536,-1699.0,0.00019835,2]
[365426354,1749664259546,-490.0,0.00019835,2]
[365426355,1749664259556,-490.0,0.00019835,2]
[365426356,1749664259567,-151.0,0.00019835,2]
[365426357,1749664259576,-151.0,0.00019835,2]
[365426358,1749664259586,-757.06,0.00019835,2]
[365426359,1749664259596,-490.0,0.00019835,2]
[365426360,1749664259608,-609.19,0.00019835,2]
[365426361,1749664259618,-490.0,0.00019835,2]
[365426362,1749664259627,-2133.29,0.00019835,2]
[365426363,1749664259637,-490.0,0.00019835,2]
[365426364,1749664259647,-490.0,0.00019835,2]
[365426365,1749664259657,-557.38,0.00019835,2]
[365426366,1749664259667,-605.71,0.00019835,2]
[365426367,1749664259676,-490.0,0.00019835,2]
[365426368,1749664259686,-490.0,0.00019835,2]
[365426369,1749664259696,-490.0,0.00019835,2]
[365426370,1749664259706,-490.0,0.00019835,2]
[365426371,1749664259717,-490.0,0.00019835,2]
[365426372,1749664259727,-490.0,0.00019835,2]
[365426373,1749664259736,-892.62,0.00019835,2]
[365426374,1749664259747,-538.914135,0.00019835,2]
[365426375,1749664259757,-631.05,0.00019835,2]
[365426376,1749664259767,-490.0,0.00019835,2]
[365426377,1749664259777,-799.7,0.00019835,2]
[365426378,1749664259787,-1515.41,0.00019835,2]
[365426379,1749664259798,-616.92,0.00019835,2]
[365426380,1749664259808,-490.0,0.00019835,2]
[365426381,1749664259818,-490.0,0.00019835,2]
[365426382,1749664259827,-854.08,0.00019835,2]
[365426383,1749664259838,-622.14,0.00019835,2]
[365426384,1749664259848,-490.0,0.00019835,2]
[365426385,1749664259858,-156.672943,0.00019841,2]
[365426386,1749664259868,-1000.0,0.00019846,2]
[365426387,1749664259877,-1078.0,0.00019847,2]
[365426388,1749664259887,-300.0,0.00019848,2]
[365426389,1749664259897,-541.70927701,0.00019866,2]
[365426390,1749664259906,-307.20162525,0.00019868,2]
[365426391,1749664259916,-1000.0,0.00019873,2]
[365426392,1749664259926,-605.20329238,0.00019874,2]
[365426393,1749664259936,-605.20329238,0.00019875,2]
[365426394,1749664259945,-1211.37,0.00019879,2]
[365426395,1749664259955,-1633.38,0.00019879,2]
[365426396,1749664259965,-126313.41642685,0.0001988,2]
[365426397,1749664259974,-151.0,0.0001988,2]
[365426398,1749664259984,-339.033445,0.0001988,2]
[365426399,1749664259994,-339.033445,0.0001988,2]
[365426400,1749664260003,-151.0,0.0001988,2]
[365426401,1749664260015,-151.0,0.0001988,2]
[365426402,1749664260025,-151.0,0.0001988,2]
[365426403,1749664260035,-303.670731,0.0001988,2]
[365426404,1749664260045,-303.670731,0.0001988,2]
[365426405,1749664260055,-151.0,0.0001988,2]
[365426406,1749664260064,-151.0,0.0001988,2]
[365426407,1749664260074,-151.0,0.0001988,2]
[365426408,1749664260083,-354.212643,0.0001988,2]
[365426409,1749664260093,-155.946081,0.0001988,2]
[365426410,1749664260102,-151.0,0.0001988,2]
[365426411,1749664260111,-151.0,0.0001988,2]
[365426412,1749664260121,-151.0,0.0001988,2]
[365426413,1749664260132,-151.0,0.0001988,2]
[365426414,1749664260142,-151.0,0.0001988,2]
[365426415,1749664260151,-151.0,0.0001988,2]
[365426416,1749664260161,-151.0,0.0001988,2]
[365426417,1749664260171,-265.821404,0.0001988,2]
[365426418,1749664260182,-152.607722,0.0001988,2]
[365426419,1749664260192,-2993.328603,0.0001988,2]
[365426420,1749664260202,-2993.328603,0.0001988,2]
[365426421,1749664260212,-151.0,0.0001988,2]
[365426422,1749664260223,-151.0,0.0001988,2]
[365426423,1749664260232,-247.554092,0.0001988,2]
[365426424,1749664260243,-151.0,0.0001988,2]
[365426425,1749664260253,-249.017152,0.0001988,2]
[365426426,1749664260265,-151.0,0.0001988,2]
[365426427,1749664260276,-151.0,0.0001988,2]
[365426428,1749664260285,-151.0,0.0001988,2]
[365426429,1749664260296,-1762.157735,0.0001988,2]
[365426430,1749664260306,-1762.157735,0.0001988,2]
[365426431,1749664260315,-151.0,0.0001988,2]
[365426432,1749664260325,-151.0,0.0001988,2]
[365426433,1749664260335,-151.0,0.0001988,2]
[365426434,1749664260344,-800.0,0.00019888,2]
[365426435,1749664260354,-315.02432659,0.00019891,2]
[365426436,1749664260364,-200.0,0.00019899,2]
[365426437,1749664260374,-218.930564,0.00019899,2]
[365426438,1749664260384,-218.930564,0.00019899,2]
[365426439,1749664260394,-35317.11,0.000199,2]
[365426440,1749664260404,-151.0,0.000199,2]
[365426441,1749664260414,-151.0,0.000199,2]
[365426442,1749664260424,-1177.765866,0.000199,2]
[365426443,1749664260434,-1177.765866,0.000199,2]
[365426444,1749664260444,-151.0,0.000199,2]
[365426445,1749664260453,-151.0,0.000199,2]
[365426446,1749664260463,-151.0,0.000199,2]
[365426447,1749664260473,-151.0,0.000199,2]
[365426448,1749664260483,-151.0,0.000199,2]
[365426449,1749664260492,-153.7436,0.000199,2]
[365426450,1749664260502,-151.0,0.000199,2]
[365426451,1749664260514,-151.0,0.000199,2]
[365426452,1749664260527,-203.161638,0.000199,2]
[365426453,1749664260537,-151.0,0.000199,2]
[365426454,1749664260546,-151.0,0.000199,2]
[365426455,1749664260556,-152.22403,0.000199,2]
[365426456,1749664260566,-151.0,0.000199,2]
[365426457,1749664260576,-151.0,0.000199,2]
[365426458,1749664260586,-151.0,0.000199,2]
[365426459,1749664260596,-156.672943,0.000199,2]
[365426460,1749664260606,-1699.12219315,0.000199,2]
[365426461,1749664260616,-207.23714623,0.000199,2]
[365426462,1749664260626,-541.70927701,0.000199,2]
[365426463,1749664260635,-1399.39434586,0.000199,2]
[365426464,1749664260645,-541.35,0.00019916,2]
[365426465,1749664260654,-150.0,0.00019922,2]
[365426466,1749664260664,-853.0,0.00019922,2]
[365426467,1749664260673,-150.0,0.00019922,2]
[365426468,1749664260683,-150.0,0.00019929,2]
[365426469,1749664260693,-200.0,0.00019942,2]
[365426470,1749664260703,-1000.0,0.00019945,2]
[365426471,1749664260712,-977.36,0.00019967,2]
[365426472,1749664260722,-168.0,0.0001997,2]
[365426473,1749664260732,-150.0,0.0001997,2]
[365426474,1749664260742,-150.0,0.0001997,2]
[365426475,1749664260752,-150.0,0.0001997,2]
[365426476,1749664260764,-203.25021384,0.0001997,2]
[365426477,1749664260774,-150.45286631,0.0001997,2]
[365426478,1749664260784,-151.00382832,0.0001997,2]
[365426479,1749664260794,-150.0,0.0001997,2]
[365426480,1749664260804,-159.71377207,0.0001997,2]
[365426481,1749664260814,-150.0,0.0001997,2]
[365426482,1749664260824,-150.0,0.0001997,2]
[365426483,1749664260835,-500.0,0.0001997,2]
[365426484,1749664260844,-500.0,0.0001997,2]
[365426485,1749664260855,-500.0,0.0001997,2]
[365426486,1749664260865,-150.0,0.0001997,2]
[365426487,1749664260875,-500.0,0.0001997,2]
[365426488,1749664260885,-151.54412811,0.0001997,2]
[365426489,1749664260895,-500.0,0.0001997,2]
[365426490,1749664260904,-500.0,0.0001997,2]
[365426491,1749664261109,-500.0,0.0001997,2]
[365426492,1749664261119,-150.0,0.0001997,2]
[365426493,1749664261129,-157.70226157,0.0001997,2]
[365426494,1749664261139,-500.0,0.0001997,2]
[365426495,1749664261148,-150.0,0.0001997,2]
[365426496,1749664261158,-167.16430948,0.0001997,2]
[365426497,1749664261167,-500.0,0.0001997,2]
[365426498,1749664261177,-561.0,0.0001997,2]
[365426499,1749664261187,-150.0,0.0001997,2]
[365426500,1749664261196,-150.0,0.0001997,2]
[365426501,1749664261206,-150.0,0.0001997,2]
[365426502,1749664261216,-150.0,0.0001997,2]
[365426503,1749664261226,-150.0,0.0001997,2]
[365426504,1749664261235,-150.0,0.0001997,2]
[365426505,1749664261244,-500.0,0.0001997,2]
[365426506,1749664261253,-170.43062085,0.00019973,2]
[365426507,1749664261264,-500.0,0.00019973,2]
[365426508,1749664261274,-500.0,0.00019973,2]
[365426509,1749664261283,-159.94296662,0.00019973,2]
[365426510,1749664261294,-159.94296785,0.00019973,2]
[365426511,1749664261303,-500.0,0.00019973,2]
[365426512,1749664261313,-500.0,0.00019973,2]
[365426513,1749664261322,-500.0,0.00019973,2]
[365426514,1749664261332,-500.0,0.00019973,2]
[365426515,1749664261342,-500.0,0.00019973,2]
[365426516,1749664261352,-150.0,0.00019978,2]
[365426517,1749664261362,-200.0,0.0001998,2]
[365426518,1749664261371,-200.0,0.0001998,2]
[365426519,1749664261381,-200.0,0.0001998,2]
[365426520,1749664261390,-3289.5033345,0.00019986,2]
[365426521,1749664261398,-2870.7173367,0.00019986,2]